bitfinex-derivatives/quotes_ETHF0:USTF0_20250804
["timestamp","ask_amount","ask_price","bid_price","bid_amount"]
[1754266747017,21.2254,3500.4,3500.3,2.10052]
[1754266747221,21.526,3500.4,3500.3,2.10052]
[1754266747424,21.2254,3500.4,3500.3,2.10052]
[1754266747630,21.2254,3500.4,3500.3,5.30832]
[1754266749526,1.796,3500.8,3500.7,1.5292]
[1754266749828,19.73,3500.9,3500.8,1.28233]
[1754266750024,20.7718,3500.9,3500.8,1.28233]
[1754266750229,21.526,3500.9,3500.8,2.10043]
[1754266751430,3.8415,3501.2,3501.1,1.28228]
[1754266751630,25.25282746,3501.2,3501.1,1.5292]
[1754266751829,22.34562746,3501.2,3501.1,0.9099]
[1754266752132,22.34562746,3501.2,3501.1,0.721]
[1754266753630,0.7207,3501.0,3500.9,0.77161]
[1754266753829,2.61562746,3501.0,3500.9,0.77161]
[1754266754030,1.796,3501.0,3500.9,0.77161]
[1754266754232,2.61577774,3501.0,3500.9,2.11261]
[1754266754629,1.0447,3501.3,3501.2,0.78497]
[1754266754833,22.37133503,3501.3,3501.2,2.13217]
[1754266755729,21.5515,3501.3,3501.2,2.13217]
[1754266758026,21.5515,3501.3,3501.1,3.77898]
[1754266758226,2.64275501,3501.2,3501.1,3.99358]
[1754266758435,2.64275501,3501.2,3501.1,5.03548]
[1754266759238,2.64275501,3501.2,3501.1,5.33998]
[1754266759937,0.82025501,3501.2,3501.1,5.33998]
[1754266760131,5.0,3501.6,3501.1,5.33998]
[1754266760132,1.5082,3501.5,3501.4,2.13214]
[1754266760332,0.723,3501.5,3501.4,2.13214]
[1754266760635,0.3038,3501.5,3501.4,2.13214]
[1754266761437,0.723,3501.5,3501.4,2.13214]
[1754266761637,2.6431238,3501.5,3501.4,1.80844]
[1754266762037,2.6431238,3501.5,3501.4,1.31364]
[1754266762438,2.6431238,3501.5,3501.4,0.2146]
[1754266762640,2.6431238,3501.5,3501.3,0.57115]
[1754266762641,1.8225,3501.4,3501.3,0.57115]
[1754266762840,1.8225,3501.3,3501.2,0.57116]
[1754266763235,1.8225,3501.3,3501.2,0.78576]
[1754266763741,1.8225,3500.8,3500.7,3.2078]
[1754266764036,1.8225,3500.4,3500.3,4.20751]
[1754266764347,20.7697,3500.7,3500.6,1.30417]
[1754266764537,20.0288,3500.7,3500.6,4.82388558]
[1754266764732,5.0,3501.6,3501.5,2.13212]
[1754266764937,5.0,3501.6,3501.5,5.33992]
[1754266766540,4.0455,3502.7,3502.6,0.99933]
[1754266766839,0.20721681,3502.7,3502.6,1.63713]
[1754266767041,3.2078,3503.8,3502.6,0.6378]
[1754266767234,1.0995,3503.6,3503.5,0.3237]
[1754266768043,0.3143,3504.4,3503.8,0.3237]
[1754266768336,20.32265,3504.5,3503.8,0.3237]
[1754266768543,20.32265,3504.5,3503.7,0.3141]
[1754266768544,0.7778,3504.0,3503.9,0.6378]
[1754266768739,0.3143,3504.0,3503.9,0.6378]
[1754266768942,1.0995,3504.0,3503.6,0.3141]
[1754266769143,1.0995,3503.8,3503.7,0.3237]
[1754266769942,1.0995,3503.9,3503.5,3.5315]
[1754266770141,1.0995,3504.0,3503.5,3.5315]
[1754266770446,3.77848,3504.2,3503.6,0.6378]
[1754266770648,0.4635,3503.6,3503.5,3.2078]
[1754266770952,1.0995,3503.6,3503.5,3.2078]
[1754266772141,1.0995,3503.6,3503.1,0.3237]
[1754266772340,0.57076,3503.7,3503.2,0.3237]
[1754266772542,1.0995,3503.3,3503.2,0.3237]
[1754266772946,0.3143,3503.8,3503.4,0.6378]
[1754266773144,0.3143,3503.8,3503.4,3.2078]
[1754266773344,0.3143,3503.8,3503.6,0.6378]
[1754266773650,1.67026,3503.8,3503.4,3.2078]
[1754266773845,0.4635,3503.5,3503.4,3.5315]
[1754266774147,0.57078,3503.6,3503.1,0.3237]
[1754266774354,0.7852,3503.3,3503.2,0.3237]
[1754266774948,0.7852,3503.3,3503.2,0.6378]
[1754266775151,1.0995,3503.5,3503.4,0.6378]
[1754266775645,0.3217,3503.9,3503.4,0.6378]
[1754266775850,1.0995,3504.1,3503.9,0.57073]
[1754266776051,1.0995,3504.1,3504.0,0.3237]
[1754266776250,3.2078,3504.7,3504.4,0.3141]
[1754266776448,3.6713,3504.7,3504.6,0.3237]
[1754266776649,3.993,3504.7,3504.2,0.3141]
[1754266776956,0.7852,3504.5,3504.4,0.3237]
[1754266777150,0.3143,3504.6,3504.5,0.3237]
[1754266777352,0.3143,3504.6,3504.5,0.3141]
[1754266777655,3.2078,3505.1,3504.6,0.57061]
[1754266777848,3.2078,3505.1,3504.9,0.6378]
[1754266778350,2.0995,3505.0,3504.9,0.3237]
[1754266778850,2.0995,3505.0,3504.8,3.2078]
[1754266779050,1.0995,3504.9,3504.7,0.3237]
[1754266779251,1.0995,3504.9,3504.8,4.10208]
[1754266779548,1.0,3505.0,3504.8,4.41618]
[1754266779753,1.0,3505.0,3504.9,0.6378]
[1754266780252,1.3143,3505.0,3504.9,0.6378]
[1754266780449,2.0995,3505.0,3504.9,0.3237]
[1754266781851,1.0995,3504.9,3504.8,3.2078]
[1754266782554,1.0995,3504.9,3504.8,3.5315]
[1754266782852,2.0995,3505.0,3504.9,0.6378]
[1754266783254,1.0,3505.0,3504.5,0.57063]
[1754266783452,1.0,3505.0,3504.4,3.2078]
[1754266783453,1.0,3505.0,3504.6,0.6378]
[1754266783655,1.0995,3504.8,3504.6,0.6378]
[1754266783852,1.8001,3504.5,3504.4,3.2078]
[1754266784154,0.7019,3503.9,3503.8,1.29864]
[1754266784354,1.8001,3503.9,3503.8,1.29864]
[1754266784755,1.8001,3503.9,3503.8,1.61014]
[1754266786450,0.6198,3504.4,3504.0,0.5707]
[1754266786649,3.2078,3504.8,3504.4,0.57064]
[1754266786650,0.6198,3504.7,3504.4,0.57064]
[1754266786857,1.0982,3504.8,3504.7,0.8847]
[1754266787047,6.0,3505.0,3504.7,1.1962]
[1754266787250,6.3075,3505.0,3504.8,0.57057]
[1754266787451,7.0982,3505.0,3504.9,0.3141]
[1754266787653,6.0,3505.0,3504.9,0.3141]
[1754266787855,7.0982,3505.0,3504.9,0.3141]
[1754266788151,6.0,3505.0,3504.9,0.6256]
[1754266788549,6.0,3505.0,3504.8,3.2078]
[1754266788748,1.0982,3504.9,3504.8,3.2078]
[1754266788954,0.6198,3504.9,3504.8,3.8334]
[1754266789155,0.3075,3504.9,3504.8,3.8334]
[1754266789751,6.0,3505.0,3504.9,0.57057]
[1754266789952,6.0,3505.0,3504.9,1.19617]
[1754266790158,0.57047,3505.5,3504.9,1.19617]
[1754266790159,0.3075,3506.5,3505.2,0.1008]
[1754266790362,0.49973523,3506.4,3506.3,3.2078]
[1754266790650,1.59927813,3506.4,3506.3,3.2078]
[1754266790851,0.7907,3506.2,3505.6,0.57045]
[1754266791057,0.6198,3506.1,3505.9,0.5704]
[1754266791246,1.0982,3506.0,3505.9,0.5704]
[1754266791447,1.0982,3506.0,3505.9,3.7782]
[1754266791649,1.0982,3506.0,3505.9,0.5704]
[1754266791964,0.3075,3506.0,3505.9,3.7782]
[1754266792559,0.6198,3506.0,3505.9,3.7782]
[1754266792763,1.0982,3506.0,3505.9,3.2078]
[1754266793057,1.0982,3506.0,3505.8,0.57042]
[1754266793249,0.5703,3506.6,3505.9,3.2078]
[1754266793455,0.80959051,3506.5,3505.9,3.2078]
[1754266793655,0.80959051,3506.4,3505.9,3.2078]
[1754266793848,3.7781,3506.6,3505.9,3.2078]
[1754266794053,0.80959682,3506.5,3506.0,0.57039]
[1754266794255,1.90779682,3506.4,3506.0,0.57039]
[1754266794456,1.90779682,3506.3,3506.0,0.57039]
[1754266794650,1.0982,3506.1,3506.0,0.57039]
[1754266794851,0.3075,3506.1,3506.0,5.05349872]
[1754266795152,1.0982,3506.7,3506.6,0.57028]
[1754266795358,1.90878919,3506.7,3506.6,0.57028]
[1754266795758,0.81058919,3506.7,3506.4,0.57031]
[1754266796057,1.0982,3506.5,3506.4,0.57031]
[1754266796257,1.90878919,3506.5,3506.4,0.57031]
[1754266798858,1.43038919,3506.5,3506.4,0.57031]
[1754266799258,1.11808919,3506.5,3506.4,0.57031]
[1754266799959,5.3075,3506.5,3506.4,0.67111]
[1754266800155,5.0,3506.5,3506.4,0.67111]
[1754266800358,5.3075,3506.5,3506.4,0.67111]
[1754266800657,5.3075,3506.5,3506.4,0.57031]
[1754266801057,5.0,3506.5,3506.4,0.67111]
[1754266801257,4.41911,3506.5,3506.4,0.67111]
[1754266802162,3.65887,3506.5,3506.4,0.67111]
[1754266803463,0.3123,3507.4,3507.2,0.57018]
[1754266803764,1.11780801,3507.3,3507.2,0.57018]
[1754266804063,1.90850801,3507.3,3507.2,0.57018]
[1754266804260,1.11780801,3507.3,3507.2,3.77798]
[1754266804563,1.43010801,3507.3,3507.2,3.77798]
[1754266804964,1.90850801,3507.3,3507.2,3.77798]
[1754266805565,1.90850801,3507.3,3507.2,3.2078]
[1754266808059,1.43010801,3507.3,3507.2,7.69090872]
[1754266808266,1.11780801,3507.3,3507.2,7.69090872]
[1754266808663,1.43010801,3507.3,3507.2,7.69090872]
[1754266808870,1.90850801,3507.3,3507.2,7.69090872]
[1754266810168,1.0982,3507.2,3506.9,0.57023]
[1754266810365,0.57018,3507.3,3506.9,0.57023]
[1754266810568,0.7859,3507.0,3506.8,3.2078]
[1754266810869,0.80699735,3506.9,3506.8,3.2078]
[1754266811067,1.90519735,3506.9,3506.8,3.2078]
[1754266812070,1.11449735,3506.9,3506.8,3.2078]
[1754266812366,1.59165148,3507.6,3506.8,3.3086]
[1754266812564,1.0982,3507.2,3507.1,0.5702]
[1754266814071,1.2267,3507.7,3506.8,3.2078]
[1754266814273,0.5703,3506.6,3506.0,3.77818]
[1754266814479,0.7488,3506.2,3506.0,3.77818]
[1754266814669,0.7488,3506.1,3506.0,3.77818]
[1754266814965,0.4779,3506.7,3506.1,0.1344]
[1754266815170,0.8408,3506.5,3506.1,0.1344]
[1754266815368,0.3859,3506.3,3506.1,0.1344]
[1754266815569,0.3859,3506.3,3506.2,0.70475]
[1754266815972,0.3859,3506.3,3506.2,0.93995]
[1754266816474,1.19523866,3506.3,3506.2,0.70475]
[1754266816672,1.19523866,3506.3,3506.0,7.69090872]
[1754266816673,0.80933866,3506.3,3506.1,0.57036]
[1754266816972,1.2267,3506.1,3506.0,3.2078]
[1754266817174,2.03603866,3506.1,3506.0,3.2078]
[1754266819673,1.19523866,3506.1,3506.0,3.3422]
[1754266819862,0.80933866,3506.1,3506.0,3.5774]
[1754266820268,1.02152148,3506.7,3506.0,3.5774]
[1754266820470,0.8111852,3506.6,3506.4,0.1344]
[1754266820673,1.1970852,3506.5,3506.4,0.70472]
[1754266821173,0.8111852,3506.5,3506.4,4.14772]
[1754266821371,1.02152148,3507.1,3507.0,0.1344]
[1754266821569,0.3859,3507.1,3507.0,0.1344]
[1754266821764,0.5702,3507.2,3506.8,3.2078]
[1754266822072,1.2267,3506.9,3506.8,3.2078]
[1754266823478,0.3859,3506.9,3506.8,3.3422]
[1754266823677,0.3859,3506.9,3506.8,3.5774]
[1754266823879,0.3859,3507.1,3507.0,0.57022]
[1754266824178,0.3859,3507.1,3506.8,3.2078]
[1754266824179,1.2267,3507.0,3506.8,3.2078]
[1754266824374,1.2267,3506.9,3506.8,3.2078]
[1754266824584,1.2267,3506.9,3506.4,3.2078]
[1754266824772,1.2267,3506.9,3506.5,0.57031]
[1754266825078,1.2267,3506.7,3506.5,0.57031]
[1754266825274,0.8408,3506.6,3506.5,0.57031]
[1754266825476,1.2267,3506.6,3506.5,0.57031]
[1754266826077,1.2267,3506.6,3506.2,0.57035]
[1754266826376,0.57028,3506.7,3506.0,3.3422]
[1754266826377,1.2267,3506.1,3506.0,3.2078]
[1754266826582,3.2078,3506.7,3506.0,3.2078]
[1754266826583,1.2267,3506.5,3506.0,0.57037]
[1754266826777,1.2267,3506.4,3506.0,0.57037]
[1754266826972,1.2267,3506.3,3506.0,0.57037]
[1754266827174,1.2267,3506.2,3506.0,0.57037]
[1754266827375,0.7488,3506.1,3506.0,0.70477]
[1754266828080,0.3629,3506.6,3506.0,0.1344]
[1754266828278,3.5707,3506.7,3506.2,0.1344]
[1754266828481,0.7488,3506.6,3506.5,0.5703]
[1754266828774,0.7488,3506.6,3506.5,0.7047]
[1754266828980,3.2078,3506.7,3506.5,0.9399]
[1754266829182,3.5937,3506.7,3506.6,0.1344]
[1754266829372,3.2078,3507.3,3506.6,4.61750872]
[1754266829571,0.3859,3507.1,3506.9,0.57023]
[1754266829771,1.2267,3507.1,3506.9,0.57023]
[1754266829972,1.2267,3507.0,3506.9,0.57023]
[1754266830177,1.2267,3507.0,3506.9,0.70463]
[1754266830373,1.2267,3507.1,3506.5,3.2078]
[1754266830582,1.04816,3506.8,3506.5,3.2078]
[1754266830875,0.7488,3506.5,3506.1,0.57037]
[1754266831076,1.2267,3506.3,3506.0,3.2078]
[1754266831280,0.5703,3506.6,3506.0,3.2078]
[1754266831483,1.2267,3506.1,3506.0,3.2078]
[1754266831981,1.2267,3506.1,3506.0,3.77818]
[1754266832988,0.7488,3506.1,3506.0,3.77818]
[1754266833282,0.8408,3506.6,3506.5,0.57031]
[1754266833478,1.2267,3506.6,3506.5,0.70471]
[1754266834080,0.3859,3506.9,3506.8,0.57024]
[1754266834280,3.5937,3507.3,3507.0,0.80541]
[1754266834487,3.5937,3507.3,3506.7,4.48310872]
[1754266834488,3.2078,3507.3,3507.2,0.80539]
[1754266834788,1.2267,3507.6,3507.3,0.1344]
[1754266834982,0.4779,3507.5,3507.3,0.1344]
[1754266835190,1.2267,3507.4,3507.3,0.1344]
[1754266835982,0.7488,3507.4,3507.3,0.1344]
[1754266836484,0.3859,3507.6,3507.4,0.93976]
[1754266836689,0.3859,3507.9,3507.5,0.1344]
[1754266836996,0.8408,3507.7,3507.5,0.70454]
[1754266837194,0.7488,3507.6,3507.5,0.70454]
[1754266837784,1.2267,3507.9,3507.8,0.57008]
[1754266838184,1.2267,3507.9,3507.8,0.70448]
[1754266838385,0.7488,3507.9,3507.8,0.70448]
[1754266838591,1.0,3508.0,3507.8,0.93968]
[1754266838889,1.0,3508.0,3507.9,0.1344]
[1754266839089,1.0,3508.0,3507.9,0.3696]
[1754266840091,1.3859,3508.0,3507.9,0.3696]
[1754266841190,1.0,3508.0,3507.9,0.3696]
[1754266842893,0.3859,3508.5,3508.4,0.57]
[1754266843094,1.2267,3509.0,3508.9,0.56992]
[1754266843791,1.2267,3509.0,3508.8,0.56993]
[1754266843996,1.2051,3509.3,3508.4,4.85270872]
[1754266844390,0.4486,3509.1,3508.4,4.85270872]
[1754266844591,0.3899,3509.0,3508.4,4.85270872]
[1754266844792,1.2051,3509.3,3508.8,0.56993]
[1754266844994,1.2051,3509.2,3508.8,0.56993]
[1754266845192,1.2051,3509.1,3508.6,0.56997]
[1754266845398,1.2051,3509.0,3508.7,0.1459]
[1754266845697,1.2051,3509.2,3508.7,0.1459]
[1754266845887,0.56986,3509.3,3508.8,0.56993]
[1754266846090,1.2051,3509.2,3508.8,0.56993]
[1754266846297,2.0214,3508.9,3508.8,0.80943]
[1754266846597,2.0214,3508.9,3508.8,1.18873]
[1754266846998,2.0214,3508.9,3508.8,0.6188]
[1754266847692,2.0214,3508.9,3508.6,0.56997]
[1754266847892,0.8163,3508.7,3508.6,1.04287]
[1754266848092,2.0214,3508.7,3508.6,1.04287]
[1754266848702,2.0214,3508.7,3508.6,1.18877]
[1754266848901,1.5728,3508.7,3508.6,1.18877]
[1754266849603,2.0214,3508.7,3508.4,0.56999]
[1754266849893,0.3666,3508.6,3508.5,0.6188]
[1754266850100,1.5728,3508.6,3508.5,0.6188]
[1754266850292,2.0214,3508.6,3508.5,0.6188]
[1754266850694,1.5728,3508.6,3508.5,0.6188]
[1754266851297,1.1829,3508.6,3508.4,0.56999]
[1754266851506,2.0214,3508.5,3508.4,0.56999]
[1754266851893,0.8163,3508.3,3508.2,3.2078]
[1754266852099,2.0214,3508.3,3508.2,3.2078]
[1754266854000,1.2051,3508.9,3508.2,3.2078]
[1754266854200,2.0214,3508.6,3508.5,0.80947]
[1754266854704,2.0214,3508.6,3508.5,5.29257872]
[1754266855005,1.5728,3508.6,3508.5,5.52007872]
[1754266855192,2.0214,3508.6,3508.5,5.66227872]
[1754266855398,0.3666,3508.6,3508.5,5.90527872]
[1754266855597,4.414,3509.4,3509.3,0.467]
[1754266855800,4.8626,3509.4,3509.3,0.467]
[1754266856003,4.8626,3509.4,3509.0,0.56989]
[1754266856004,4.0241,3509.4,3509.0,0.56989]
[1754266856301,2.0214,3509.1,3509.0,0.56989]
[1754266856706,2.0214,3509.0,3508.9,0.56991]
[1754266858094,0.56979,3509.7,3509.1,0.56988]
[1754266858305,3.2078,3509.8,3509.1,0.56988]
[1754266858306,2.0214,3509.2,3509.1,4.24468]
[1754266858800,2.0214,3509.2,3509.1,4.38688]
[1754266859299,0.8152,3510.4,3509.3,1.42463]
[1754266859509,1.5728,3510.1,3510.0,0.467]
[1754266859799,0.3094,3510.2,3510.0,0.3817]
[1754266859999,2.0214,3510.2,3510.1,0.467]
[1754266860202,0.3666,3510.7,3510.3,0.56968]
[1754266860401,1.2051,3510.5,3510.3,3.2078]
[1754266860705,1.2051,3510.4,3510.3,3.35]
[1754266860907,0.56963,3510.7,3510.0,0.56974]
[1754266861100,1.2051,3510.4,3509.9,3.77755]
[1754266861401,0.56965,3510.6,3509.9,3.77755]
[1754266861596,1.2051,3510.3,3509.9,3.77755]
[1754266861801,1.2051,3510.5,3509.9,3.77755]
[1754266861992,1.2051,3510.6,3509.9,3.77755]
[1754266862597,0.3666,3510.3,3510.1,0.56971]
[1754266862798,0.5696,3510.9,3510.3,0.56969]
[1754266862999,0.56961,3510.8,3510.3,3.2078]
[1754266863198,1.0,3511.0,3510.3,3.91968]
[1754266863199,0.3899,3510.6,3510.3,3.91968]
[1754266863496,1.2051,3510.4,3510.3,3.2078]
[1754266864599,1.2051,3510.4,3510.3,3.35]
[1754266865600,1.0,3511.0,3510.3,0.56968]
[1754266865803,1.0,3511.0,3510.5,0.56964]
[1754266866208,1.0,3511.0,3510.5,0.80914]
[1754266866209,0.8163,3510.6,3510.5,0.80914]
[1754266866503,2.0214,3510.6,3510.5,0.80914]
[1754266866698,0.3666,3510.6,3510.5,0.56964]
[1754266866905,1.56959,3511.0,3510.9,0.6092]
[1754266866906,3.0214,3511.0,3510.9,0.6092]
[1754266867095,3.0214,3511.0,3510.7,1.17882]
[1754266867096,0.8163,3510.8,3510.7,1.17882]
[1754266867294,1.5728,3510.8,3510.7,1.17882]
[1754266867705,2.0214,3510.8,3510.7,1.17882]
[1754266869002,0.3666,3510.8,3510.7,1.42182]
[1754266869400,1.0,3511.0,3510.7,1.03662]
[1754266869705,2.3827,3511.0,3510.9,4.38659]
[1754266869900,3.0214,3511.0,3510.9,4.38659]
[1754266870101,1.0,3511.0,3510.9,4.38659]
[1754266870301,1.0,3511.0,3510.9,4.62959]
[1754266870500,2.324,3511.0,3510.9,3.817]
[1754266870703,3.0214,3511.0,3510.9,3.4473]
[1754266870907,1.6548,3510.8,3510.7,0.56961]
[1754266871103,2.0214,3510.8,3510.7,0.80911]
[1754266871302,2.0214,3510.8,3510.7,1.03661]
[1754266871501,0.8163,3510.8,3510.5,3.35]
[1754266871699,2.0214,3510.6,3510.5,3.2078]
[1754266871904,0.3666,3510.9,3510.8,0.6092]
[1754266872104,0.8163,3510.7,3510.6,0.1422]
[1754266872308,2.0214,3510.6,3510.5,3.2078]
[1754266872505,2.0214,3510.6,3510.4,4.48310872]
[1754266872703,1.5728,3510.5,3510.4,5.51977872]
[1754266872908,1.324,3510.5,3510.4,8.86977872]
[1754266873304,2.0214,3510.5,3510.4,8.86977872]
[1754266873904,1.1984,3510.5,3510.4,8.85967872]
[1754266874106,2.0428,3510.5,3510.4,8.85967872]
[1754266874517,2.0428,3510.8,3510.7,1.16103]
[1754266874806,2.0428,3510.8,3510.6,0.56963]
[1754266875004,0.3881,3510.9,3510.8,0.5696]
[1754266875209,0.762,3510.9,3510.8,1.161]
[1754266875513,1.3264,3510.9,3510.8,1.161]
[1754266875811,2.0428,3510.9,3510.8,0.5696]
[1754266876212,2.0428,3510.9,3510.8,0.8175]
[1754266877002,0.8245,3510.8,3510.7,0.56961]
[1754266877202,1.2808,3510.8,3510.7,0.56961]
[1754266877603,2.0428,3510.8,3510.7,0.56961]
[1754266877908,2.0428,3510.8,3510.7,0.81751]
[1754266878105,0.3881,3510.8,3510.7,1.39401]
[1754266878309,1.3881,3511.0,3510.9,1.02889]
[1754266878516,2.0054,3511.0,3510.9,1.16099]
[1754266878812,2.5865,3511.0,3510.9,1.16099]
[1754266879214,3.0428,3511.0,3510.9,1.16099]
[1754266879808,1.3881,3511.0,3510.9,1.39399]
[1754266880005,1.0,3511.0,3510.9,1.39399]
[1754266880212,3.2078,3511.9,3511.1,1.4239]
[1754266880523,0.3881,3511.8,3511.7,5.51186872]
[1754266880815,0.762,3512.1,3512.0,1.02871]
[1754266881017,0.3881,3512.1,3512.0,1.16081]
[1754266881318,0.762,3512.1,3512.0,1.16081]
[1754266881513,3.77706,3513.0,3512.0,1.16081]
[1754266881514,1.2183,3512.8,3512.0,0.1321]
[1754266881718,1.3264,3512.3,3512.2,1.16078]
[1754266882018,2.0428,3512.3,3512.2,1.02868]
[1754266882212,2.0428,3512.3,3512.2,4.02508]
[1754266882611,0.8245,3512.3,3511.8,3.2078]
[1754266882915,0.56941,3512.1,3511.4,3.77731]
[1754266883122,1.2183,3511.9,3511.4,3.2078]
[1754266883316,1.2183,3511.9,3510.7,4.48310872]
[1754266883317,1.2183,3511.4,3510.7,3.2078]
[1754266883514,0.3739,3510.9,3510.4,0.56967]
[1754266883708,0.762,3510.9,3510.3,44.78849]
[1754266883908,1.2183,3511.0,3510.4,0.56967]
[1754266884314,0.56957,3511.1,3510.4,0.56967]
[1754266884515,1.2183,3511.0,3510.4,0.56967]
[1754266884814,0.3739,3510.8,3510.5,0.3867]
[1754266885008,0.3739,3511.3,3510.7,4.0618]
[1754266885214,0.56949,3511.6,3510.8,0.56961]
[1754266885419,0.762,3511.0,3510.3,3.2078]
[1754266885616,1.2183,3510.7,3510.3,3.77749]
[1754266885816,0.3881,3510.6,3510.3,3.77749]
[1754266886018,1.2183,3510.4,3510.3,3.77749]
[1754266886320,1.2183,3510.4,3510.3,4.24479]
[1754266886515,1.2183,3510.4,3510.3,4.63149]
[1754266886721,0.3881,3510.4,3510.3,4.63149]
[1754266886918,0.762,3510.8,3510.7,0.56961]
[1754266887218,1.2183,3510.8,3510.7,0.4673]
[1754266887924,1.2183,3510.8,3510.7,0.854]
[1754266888122,1.2183,3510.7,3510.6,0.56964]
[1754266888621,1.2183,3510.7,3510.6,1.03694]
[1754266888821,1.2183,3510.7,3510.6,0.854]
[1754266889125,0.56955,3511.2,3510.3,3.5945]
[1754266889325,0.3881,3511.0,3510.8,0.5696]
[1754266889625,1.2183,3510.9,3510.4,0.56967]
[1754266889825,0.3881,3510.8,3510.4,0.56967]
[1754266890022,0.56958,3511.0,3510.4,0.95637]
[1754266890324,0.56961,3510.8,3510.4,0.854]
[1754266890624,0.8302,3510.4,3510.3,3.2078]
[1754266890822,0.8302,3510.4,3509.4,0.75076491]
[1754266890823,0.8302,3510.1,3509.8,3.2078]
[1754266891020,0.8302,3510.5,3509.4,3.2078]
[1754266891223,0.8302,3510.2,3509.4,3.2078]
[1754266891431,1.78804,3510.1,3509.5,0.56982]
[1754266891619,1.2183,3510.0,3509.5,0.56982]
[1754266891817,0.762,3509.8,3509.4,3.2078]
[1754266892025,0.3881,3509.6,3509.5,0.56982]
[1754266892522,0.3881,3509.6,3509.5,1.42382]
[1754266892724,1.2183,3510.1,3509.5,0.854]
[1754266893024,0.3739,3510.0,3509.9,0.854]
[1754266893222,0.56968,3510.4,3509.7,0.56979]
[1754266893425,0.56971,3510.2,3509.4,3.77763]
[1754266893731,3.2078,3510.4,3509.4,3.2078]
[1754266893732,0.3739,3509.7,3509.4,3.2078]
[1754266893922,0.8444,3509.6,3509.4,3.2078]
[1754266894123,1.2183,3509.5,3509.4,3.2078]
[1754266894323,0.56978,3509.8,3508.9,4.0618]
[1754266894533,0.3881,3509.5,3509.4,1.42383]
[1754266894823,0.8302,3509.5,3509.4,0.3867]
[1754266895023,1.2183,3509.5,3509.3,3.77765]
[1754266895218,3.2078,3510.0,3509.3,3.2078]
[1754266895425,1.2183,3509.7,3509.3,3.2078]
[1754266895623,0.56976,3509.9,3509.3,3.2078]
[1754266896030,3.2078,3510.0,3509.4,0.56984]
[1754266896232,0.56975,3509.9,3509.3,3.77765]
[1754266896426,3.2078,3510.0,3509.6,0.5698]
[1754266896627,1.2183,3510.1,3509.6,1.4238]
[1754266896826,1.2183,3509.9,3509.4,0.56983]
[1754266897025,1.2183,3509.9,3509.4,1.03713]
[1754266897229,0.56974,3510.0,3509.4,1.03713]
[1754266897432,0.56973,3510.1,3509.4,1.03713]
[1754266897727,1.2183,3509.9,3509.6,0.5698]
[1754266897933,0.56973,3510.1,3509.5,0.56982]
[1754266897934,1.2183,3509.7,3509.5,0.56982]
[1754266898231,1.2183,3510.0,3509.5,0.56982]
[1754266898527,1.2183,3509.9,3509.7,0.56978]
[1754266898740,2.0428,3509.8,3509.7,2.20818]
[1754266898926,1.5865,3509.8,3509.7,2.20818]
[1754266899129,0.8302,3510.1,3510.0,0.56974]
[1754266899329,0.3881,3510.1,3510.0,1.6384]
[1754266899632,0.3881,3510.1,3510.0,2.20814]
[1754266900223,3.2078,3510.4,3510.3,0.56969]
[1754266900429,3.8393,3510.4,3510.3,2.20809]
[1754266900629,5.2506,3510.4,3510.3,2.20809]
[1754266901234,4.4261,3510.4,3510.3,1.42369]
[1754266901532,3.2078,3510.4,3510.2,0.5697]
[1754266901737,1.2183,3510.3,3510.2,0.5697]
[1754266902334,1.2183,3510.3,3509.7,3.2078]
[1754266902335,1.2183,3510.3,3510.0,0.56974]
[1754266902531,0.56969,3510.3,3509.7,3.2078]
[1754266902731,0.8302,3510.1,3509.8,0.56977]
[1754266902931,1.2183,3510.3,3509.8,0.56977]
[1754266903132,3.77748,3510.4,3509.8,0.56977]
[1754266903331,1.2183,3510.2,3509.8,0.95647]
[1754266903526,1.2183,3510.2,3509.2,3.4408]
[1754266903527,0.8444,3510.3,3509.7,0.3867]
[1754266903731,1.2136,3510.2,3510.1,0.56972]
[1754266903938,1.2088,3510.1,3509.6,3.2078]
[1754266904136,1.2088,3510.2,3509.8,0.56976]
[1754266904337,0.5697,3510.3,3509.8,0.56976]
[1754266904338,1.2088,3510.1,3509.8,0.56976]
[1754266904538,3.77748,3510.4,3510.0,0.56972]
[1754266904539,3.2078,3510.4,3510.0,0.56972]
[1754266904735,0.56969,3510.3,3509.8,0.56977]
[1754266904931,0.56969,3510.3,3509.7,0.56978]
[1754266905437,1.2088,3510.1,3509.7,0.56978]
[1754266905738,0.7561,3510.0,3509.7,0.56978]
[1754266906038,0.8255,3509.8,3509.7,0.93578]
[1754266906239,1.2088,3509.8,3509.7,1.39258]
[1754266906933,1.2088,3509.8,3509.7,0.93578]
[1754266908641,2.0313,3509.8,3509.7,0.93578]
[1754266908937,2.0313,3509.8,3509.7,0.366]
[1754266909436,2.0313,3509.8,3509.5,1.02661]
[1754266909635,1.0128,3509.5,3509.4,0.2432]
[1754266909835,0.7561,3509.4,3509.3,3.2078]
[1754266910036,0.7561,3509.4,3508.7,0.2507]
[1754266910037,0.5658,3509.0,3508.9,3.2078]
[1754266910235,0.3833,3508.7,3508.3,1.3928]
[1754266910539,3.2078,3509.3,3508.1,3.2078]
[1754266910734,3.2078,3508.9,3508.1,3.2078]
[1754266911038,0.3833,3508.7,3508.2,0.57003]
[1754266911230,0.7561,3508.5,3508.4,0.936]